[Event "*** Titled Tuesday Blitz"]
[Site "Chess.com"]
[Date "2019.08.06"]
[Round "5"]
[White "Jospem"]
[Black "mikhaillushenkov"]
[Result "1-0"]
[WhiteElo "2918"]
[BlackElo "2683"]
[TimeControl "180+2"]
[EndTime "14:04:47 PDT"]
[Termination "Jospem won by resignation"]

1. c4 {[%clk 0:03:01.9]} 1... e6 {[%clk 0:03:00.4]} 2. g3 {[%clk 0:03:02.6]}
2... d5 {[%clk 0:02:51.5]} 3. Nf3 {[%clk 0:03:03.8]} 3... c6 {[%clk 0:02:42]} 4.
b3 {[%clk 0:03:03.7]} 4... Nf6 {[%clk 0:02:41.5]} 5. Bb2 {[%clk 0:03:04.8]} 5...
Nbd7 {[%clk 0:02:42.4]} 6. Bg2 {[%clk 0:03:05.9]} 6... Bd6 {[%clk 0:02:43.2]} 7.
O-O {[%clk 0:03:02.8]} 7... O-O {[%clk 0:02:44]} 8. Nc3 {[%clk 0:03:03.9]} 8...
a6 {[%clk 0:02:42.8]} 9. e3 {[%clk 0:03:04.8]} 9... e5 {[%clk 0:02:41.3]} 10. d3
{[%clk 0:03:04]} 10... h6 {[%clk 0:02:37.2]} 11. Rc1 {[%clk 0:03:04.9]} 11... b5
{[%clk 0:02:28.7]} 12. Nd2 {[%clk 0:03:04.6]} 12... Bb7 {[%clk 0:02:28.6]} 13.
Qe2 {[%clk 0:03:02.1]} 13... Re8 {[%clk 0:02:28.9]} 14. Rfd1 {[%clk 0:03:03]}
14... Qe7 {[%clk 0:02:29.6]} 15. Nf3 {[%clk 0:02:59.7]} 15... Rad8 {[%clk
0:02:29.3]} 16. Nh4 {[%clk 0:03:00.7]} 16... Qe6 {[%clk 0:02:25.9]} 17. Qf1
{[%clk 0:02:59.1]} 17... g6 {[%clk 0:01:57.6]} 18. Bh3 {[%clk 0:02:58.9]} 18...
Qe7 {[%clk 0:01:58.8]} 19. Bg2 {[%clk 0:03:00.4]} 19... Nf8 {[%clk 0:01:48.5]}
20. e4 {[%clk 0:02:58.5]} 20... d4 {[%clk 0:01:47.3]} 21. Ne2 {[%clk 0:02:58.9]}
21... Ne6 {[%clk 0:01:43.1]} 22. Nf3 {[%clk 0:02:59.6]} 22... bxc4 {[%clk
0:01:42.4]} 23. Rxc4 {[%clk 0:02:57.4]} 23... c5 {[%clk 0:01:43.6]} 24. Rcc1
{[%clk 0:02:56.2]} 24... Nd7 {[%clk 0:01:13.1]} 25. Nh4 {[%clk 0:02:51.9]} 25...
Qf6 {[%clk 0:01:09.2]} 26. Rc2 {[%clk 0:02:50.2]} 26... a5 {[%clk 0:01:09.5]}
27. Bc1 {[%clk 0:02:51.4]} 27... Bf8 {[%clk 0:01:07.2]} 28. Qe1 {[%clk
0:02:52.6]} 28... g5 {[%clk 0:01:02.1]} 29. Nf5 {[%clk 0:02:52.9]} 29... Ng7
{[%clk 0:01:03.1]} 30. Nxg7 {[%clk 0:02:52]} 30... Bxg7 {[%clk 0:01:02.1]} 31.
Qxa5 {[%clk 0:02:53.5]} 31... Qa6 {[%clk 0:00:51.2]} 32. Qxa6 {[%clk 0:02:48.5]}
32... Bxa6 {[%clk 0:00:53.1]} 33. g4 {[%clk 0:02:49.5]} 33... Ra8 {[%clk
0:00:50.2]} 34. Ng3 {[%clk 0:02:50]} 34... Rec8 {[%clk 0:00:50]} 35. Nf5 {[%clk
0:02:50.9]} 35... Bf8 {[%clk 0:00:51.6]} 36. Bf1 {[%clk 0:02:51.7]} 36... f6
{[%clk 0:00:52.8]} 37. h4 {[%clk 0:02:52.6]} 37... Kf7 {[%clk 0:00:53.5]} 38.
Bd2 {[%clk 0:02:49.9]} 38... Ke6 {[%clk 0:00:52.4]} 39. Rdc1 {[%clk 0:02:51.1]}
39... Bb5 {[%clk 0:00:50.8]} 40. h5 {[%clk 0:02:41.5]} 40... Ra3 {[%clk
0:00:51.6]} 41. Bb4 {[%clk 0:02:26.8]} 41... Raa8 {[%clk 0:00:46.1]} 42. a4
{[%clk 0:02:09.5]} 42... Ba6 {[%clk 0:00:43.9]} 43. Bd2 {[%clk 0:02:10.7]} 43...
Rcb8 {[%clk 0:00:44.2]} 44. b4 {[%clk 0:01:44.8]} 44... cxb4 {[%clk 0:00:40.8]}
45. Rc7 {[%clk 0:01:45.9]} 45... Bb7 {[%clk 0:00:36.1]} 46. Be2 {[%clk
0:01:39.3]} 46... Bc8 {[%clk 0:00:15]} 47. Bd1 {[%clk 0:01:35.3]} 47... Kf7
{[%clk 0:00:16.1]} 48. Bb3+ {[%clk 0:01:34]} 48... Ke8 {[%clk 0:00:17.5]} 49.
Bd5 {[%clk 0:01:27.1]} 49... Kd8 {[%clk 0:00:13.2]} 50. Bxa8 {[%clk 0:01:26.1]}
50... Rxa8 {[%clk 0:00:15.1]} 51. R7c4 {[%clk 0:01:13.6]} 51... Ba6 {[%clk
0:00:14.5]} 52. Bxb4 {[%clk 0:01:07.7]} 52... Bxc4 {[%clk 0:00:14.5]} 53. Rxc4
{[%clk 0:01:06.3]} 53... Rxa4 {[%clk 0:00:13.1]} 54. Bxf8 {[%clk 0:01:07]} 54...
Rxc4 {[%clk 0:00:14.4]} 55. Be7+ {[%clk 0:01:08.1]} 55... Ke8 {[%clk 0:00:14.5]}
56. dxc4 {[%clk 0:01:10]} 1-0

[Event "*** Titled Tuesday Blitz"]
[Site "Chess.com"]
[Date "2019.08.06"]
[Round "5"]
[White "rst2003"]
[Black "JMatias"]
[Result "1-0"]
[WhiteElo "2290"]
[BlackElo "2448"]
[TimeControl "180+2"]
[EndTime "14:04:49 PDT"]
[Termination "rst2003 won by checkmate"]

1. e4 {[%clk 0:03:01.9]} 1... e6 {[%clk 0:02:59.3]} 2. d4 {[%clk 0:03:02.2]}
2... d5 {[%clk 0:03:00.8]} 3. Nd2 {[%clk 0:03:03.6]} 3... Nf6 {[%clk 0:03:01.7]}
4. e5 {[%clk 0:03:04.6]} 4... Nfd7 {[%clk 0:03:03.3]} 5. Bd3 {[%clk 0:03:05.8]}
5... c5 {[%clk 0:03:05.2]} 6. c3 {[%clk 0:03:07.3]} 6... Nc6 {[%clk 0:03:07]} 7.
Ne2 {[%clk 0:03:08.3]} 7... cxd4 {[%clk 0:03:08.9]} 8. cxd4 {[%clk 0:03:10.2]}
8... f6 {[%clk 0:03:10.4]} 9. exf6 {[%clk 0:03:12.1]} 9... Nxf6 {[%clk
0:03:12.3]} 10. Nf3 {[%clk 0:03:13.7]} 10... Bd6 {[%clk 0:03:14.2]} 11. O-O
{[%clk 0:03:13.7]} 11... O-O {[%clk 0:03:14.7]} 12. h3 {[%clk 0:03:14.1]} 12...
a6 {[%clk 0:03:07]} 13. Be3 {[%clk 0:03:13]} 13... Nh5 {[%clk 0:02:49.8]} 14.
Ng5 {[%clk 0:02:48.5]} 14... h6 {[%clk 0:02:45.7]} 15. Nh7 {[%clk 0:02:18.5]}
15... Rf7 {[%clk 0:02:37.5]} 16. Bg6 {[%clk 0:02:16.5]} 16... Rc7 {[%clk
0:02:32.6]} 17. Bxh5 {[%clk 0:01:52.1]} 17... Kxh7 {[%clk 0:02:32]} 18. Nf4
{[%clk 0:01:46.4]} 18... Qf6 {[%clk 0:02:14.8]} 19. Ng6 {[%clk 0:01:32.7]} 19...
Bd7 {[%clk 0:02:03.9]} 20. f4 {[%clk 0:01:31.3]} 20... Be8 {[%clk 0:01:53]} 21.
Ne5 {[%clk 0:01:30.6]} 21... Bxh5 {[%clk 0:01:50.8]} 22. Qxh5 {[%clk 0:01:32.5]}
22... Qf5 {[%clk 0:01:44.5]} 23. Qe2 {[%clk 0:00:57.9]} 23... Rac8 {[%clk
0:01:29.9]} 24. a3 {[%clk 0:00:46.5]} 24... Qe4 {[%clk 0:01:19.3]} 25. Qf2
{[%clk 0:00:38.6]} 25... Rf8 {[%clk 0:01:09.3]} 26. Rae1 {[%clk 0:00:20.2]}
26... Bxe5 {[%clk 0:00:59]} 27. dxe5 {[%clk 0:00:22.1]} 27... d4 {[%clk
0:00:37.2]} 28. Bc1 {[%clk 0:00:22.9]} 28... Qd5 {[%clk 0:00:38.6]} 29. Rd1
{[%clk 0:00:23.3]} 29... Rd7 {[%clk 0:00:34.1]} 30. Qc2+ {[%clk 0:00:21.5]}
30... d3 {[%clk 0:00:34.2]} 31. Qb1 {[%clk 0:00:21.6]} 31... Qb3 {[%clk
0:00:26.8]} 32. Be3 {[%clk 0:00:20.9]} 32... Ne7 {[%clk 0:00:21.3]} 33. Rd2
{[%clk 0:00:21.5]} 33... Nf5 {[%clk 0:00:21.8]} 34. Bf2 {[%clk 0:00:22.5]} 34...
Kg8 {[%clk 0:00:22.6]} 35. Rfd1 {[%clk 0:00:23.2]} 35... Rfd8 {[%clk 0:00:24.1]}
36. g4 {[%clk 0:00:22]} 36... Ne7 {[%clk 0:00:24.8]} 37. Bh4 {[%clk 0:00:23.3]}
37... Kf7 {[%clk 0:00:24.8]} 38. Kf2 {[%clk 0:00:22.1]} 38... Rd4 {[%clk
0:00:24.8]} 39. Ke3 {[%clk 0:00:23]} 39... Nd5+ {[%clk 0:00:23]} 40. Kf3 {[%clk
0:00:22.7]} 40... Rxf4+ {[%clk 0:00:23.4]} 41. Kg3 {[%clk 0:00:23.4]} 41... g5
{[%clk 0:00:24.5]} 42. Rxd3 {[%clk 0:00:24.4]} 42... Qc4 {[%clk 0:00:20.8]} 43.
Rc3 {[%clk 0:00:21.6]} 43... Nxc3 {[%clk 0:00:18.3]} 44. Qh7+ {[%clk 0:00:21.2]}
44... Ke8 {[%clk 0:00:17.8]} 45. Qg6+ {[%clk 0:00:21.6]} 45... Rf7 {[%clk
0:00:18.5]} 46. Qg8+ {[%clk 0:00:22.5]} 46... Ke7 {[%clk 0:00:19.8]} 47. Qxd8#
{[%clk 0:00:22.9]} 1-0

[Event "*** Titled Tuesday Blitz"]
[Site "Chess.com"]
[Date "2019.08.06"]
[Round "5"]
[White "PIwan"]
[Black "chessdjw"]
[Result "0-1"]
[WhiteElo "2532"]
[BlackElo "2659"]
[TimeControl "180+2"]
[EndTime "14:04:49 PDT"]
[Termination "chessdjw won by checkmate"]

1. c4 {[%clk 0:03:01.9]} 1... g6 {[%clk 0:03:00.7]} 2. d4 {[%clk 0:03:01.7]}
2... Bg7 {[%clk 0:03:02.6]} 3. e4 {[%clk 0:03:03]} 3... e6 {[%clk 0:03:02.9]} 4.
Nc3 {[%clk 0:03:02.7]} 4... Ne7 {[%clk 0:03:04.4]} 5. Bg5 {[%clk 0:03:02.9]}
5... h6 {[%clk 0:03:04.9]} 6. Bh4 {[%clk 0:03:00.7]} 6... g5 {[%clk 0:02:56.2]}
7. Bg3 {[%clk 0:03:01.2]} 7... d5 {[%clk 0:02:57.6]} 8. Nf3 {[%clk 0:02:44.4]}
8... dxe4 {[%clk 0:02:46.2]} 9. Nxe4 {[%clk 0:02:38.6]} 9... f5 {[%clk
0:02:41.3]} 10. Be5 {[%clk 0:02:40]} 10... fxe4 {[%clk 0:02:27.8]} 11. Bxg7
{[%clk 0:02:35.9]} 11... Rh7 {[%clk 0:02:29]} 12. Bf6 {[%clk 0:01:46.5]} 12...
exf3 {[%clk 0:02:28.3]} 13. Bd3 {[%clk 0:01:47.3]} 13... Nd7 {[%clk 0:01:57.8]}
14. Bg6+ {[%clk 0:01:28.4]} 14... Kf8 {[%clk 0:01:55.7]} 15. Qxf3 {[%clk
0:01:22.1]} 15... Nxf6 {[%clk 0:00:51.2]} 16. Qxf6+ {[%clk 0:01:15.2]} 16... Kg8
{[%clk 0:00:52.5]} 17. Bxh7+ {[%clk 0:01:08.5]} 17... Kxh7 {[%clk 0:00:54.4]}
18. Qf7+ {[%clk 0:01:04.8]} 18... Kh8 {[%clk 0:00:55.2]} 19. Qf6+ {[%clk
0:00:59.4]} 19... Kh7 {[%clk 0:00:48.5]} 20. h4 {[%clk 0:00:56]} 20... g4 {[%clk
0:00:46]} 21. h5 {[%clk 0:00:48.9]} 21... Bd7 {[%clk 0:00:38.3]} 22. Qf7+ {[%clk
0:00:35.6]} 22... Kh8 {[%clk 0:00:39]} 23. Qf6+ {[%clk 0:00:37.1]} 23... Kh7
{[%clk 0:00:37]} 24. Qf7+ {[%clk 0:00:38]} 24... Kh8 {[%clk 0:00:38.2]} 25. Qf6+
{[%clk 0:00:38.5]} 25... Kg8 {[%clk 0:00:38.6]} 26. Rh4 {[%clk 0:00:37.7]} 26...
e5 {[%clk 0:00:38.6]} 27. dxe5 {[%clk 0:00:31.4]} 27... Nc6 {[%clk 0:00:33.9]}
28. Qg6+ {[%clk 0:00:25.7]} 28... Kf8 {[%clk 0:00:34.3]} 29. Qxh6+ {[%clk
0:00:26.4]} 29... Ke8 {[%clk 0:00:33.6]} 30. Qg6+ {[%clk 0:00:19]} 30... Kf8
{[%clk 0:00:32.8]} 31. O-O-O {[%clk 0:00:10.9]} 31... Nxe5 {[%clk 0:00:21.7]}
32. Qh6+ {[%clk 0:00:07.7]} 32... Kg8 {[%clk 0:00:22.8]} 33. g3 {[%clk
0:00:02.7]} 33... Qe7 {[%clk 0:00:21.3]} 34. Qe3 {[%clk 0:00:03.5]} 34... Bf5
{[%clk 0:00:19.8]} 35. h6 {[%clk 0:00:04.7]} 35... Kh7 {[%clk 0:00:17.6]} 36.
Re1 {[%clk 0:00:05.4]} 36... Nd3+ {[%clk 0:00:14.6]} 37. Kd2 {[%clk 0:00:06.9]}
37... Qb4+ {[%clk 0:00:15.4]} 38. Ke2 {[%clk 0:00:05.9]} 38... Qxe1# {[%clk
0:00:15.6]} 0-1

[Event "*** Titled Tuesday Blitz"]
[Site "Chess.com"]
[Date "2019.08.06"]
[Round "5"]
[White "kesarev"]
[Black "vpsetter"]
[Result "0-1"]
[WhiteElo "2460"]
[BlackElo "2645"]
[TimeControl "180+2"]
[EndTime "14:04:49 PDT"]
[Termination "vpsetter won by resignation"]

1. Nf3 {[%clk 0:03:01.9]} 1... Nf6 {[%clk 0:02:56.6]} 2. c4 {[%clk 0:03:01.8]}
2... e6 {[%clk 0:02:57.6]} 3. g3 {[%clk 0:03:02.6]} 3... d5 {[%clk 0:02:58.7]}
4. Bg2 {[%clk 0:03:04.5]} 4... Be7 {[%clk 0:02:59.3]} 5. O-O {[%clk 0:03:05.3]}
5... O-O {[%clk 0:03:00.7]} 6. b3 {[%clk 0:03:06.6]} 6... b6 {[%clk 0:03:01]} 7.
Bb2 {[%clk 0:03:06.4]} 7... Bb7 {[%clk 0:03:01.9]} 8. e3 {[%clk 0:03:04.7]} 8...
c5 {[%clk 0:03:02.4]} 9. Qe2 {[%clk 0:03:05.2]} 9... dxc4 {[%clk 0:03:00.8]} 10.
bxc4 {[%clk 0:03:04.8]} 10... Qc7 {[%clk 0:03:01.8]} 11. Nc3 {[%clk 0:02:59.6]}
11... a6 {[%clk 0:03:03]} 12. Rac1 {[%clk 0:02:58.1]} 12... Rd8 {[%clk
0:03:01.8]} 13. Rfd1 {[%clk 0:02:53.1]} 13... Nbd7 {[%clk 0:02:56.8]} 14. d4
{[%clk 0:02:17.8]} 14... cxd4 {[%clk 0:02:49.1]} 15. exd4 {[%clk 0:02:19.7]}
15... Rac8 {[%clk 0:02:49.8]} 16. d5 {[%clk 0:01:57.5]} 16... Qxc4 {[%clk
0:02:39.5]} 17. dxe6 {[%clk 0:01:58.1]} 17... Qxe6 {[%clk 0:02:28.7]} 18. Qxe6
{[%clk 0:01:58.8]} 18... fxe6 {[%clk 0:02:28.4]} 19. Ng5 {[%clk 0:01:51.6]}
19... Bxg2 {[%clk 0:02:27.2]} 20. Kxg2 {[%clk 0:01:53.5]} 20... Nc5 {[%clk
0:02:23.8]} 21. Ba3 {[%clk 0:01:53.1]} 21... Rxd1 {[%clk 0:02:09.7]} 22. Rxd1
{[%clk 0:01:50.7]} 22... h6 {[%clk 0:02:09.1]} 23. Nf3 {[%clk 0:01:34.7]} 23...
Rd8 {[%clk 0:01:56.5]} 24. Rxd8+ {[%clk 0:01:20.5]} 24... Bxd8 {[%clk
0:01:57.2]} 25. Nd4 {[%clk 0:01:22.2]} 25... Nfd7 {[%clk 0:01:50]} 26. Nce2
{[%clk 0:00:58.4]} 26... Bf6 {[%clk 0:01:46.8]} 27. Nc6 {[%clk 0:00:54.8]} 27...
Kf7 {[%clk 0:01:47.4]} 28. Nf4 {[%clk 0:00:52.3]} 28... g5 {[%clk 0:01:26.9]}
29. Nh5 {[%clk 0:00:31.1]} 29... Bc3 {[%clk 0:01:13.5]} 30. f4 {[%clk
0:00:31.9]} 30... Kg6 {[%clk 0:00:39.5]} 31. g4 {[%clk 0:00:28.5]} 31... Nd3
{[%clk 0:00:37.9]} 32. f5+ {[%clk 0:00:21.4]} 32... exf5 {[%clk 0:00:35.7]} 33.
Ne7+ {[%clk 0:00:22.7]} 33... Kh7 {[%clk 0:00:30.3]} 34. Nxf5 {[%clk 0:00:24.6]}
34... Bb4 {[%clk 0:00:23.7]} 35. Bxb4 {[%clk 0:00:20]} 35... Nxb4 {[%clk
0:00:24.5]} 36. a4 {[%clk 0:00:19.8]} 36... Nd5 {[%clk 0:00:25.1]} 37. Kf3
{[%clk 0:00:19.6]} 37... Nc5 {[%clk 0:00:25.8]} 38. Nhg3 {[%clk 0:00:18]} 38...
Nxa4 {[%clk 0:00:18.2]} 39. Ke4 {[%clk 0:00:18.6]} 39... Nf6+ {[%clk 0:00:18.6]}
40. Ke5 {[%clk 0:00:18.2]} 40... Nxg4+ {[%clk 0:00:19.4]} 41. Ke6 {[%clk
0:00:19.6]} 41... Nc5+ {[%clk 0:00:19.8]} 42. Kf7 {[%clk 0:00:20.4]} 42... Nxh2
{[%clk 0:00:18.1]} 43. Ne4 {[%clk 0:00:18.7]} 43... Nxe4 {[%clk 0:00:17.9]} 0-1

[Event "*** Titled Tuesday Blitz"]
[Site "Chess.com"]
[Date "2019.08.06"]
[Round "5"]
[White "slowdgehammer"]
[Black "catalin009"]
[Result "1-0"]
[WhiteElo "2436"]
[BlackElo "2617"]
[TimeControl "180+2"]
[EndTime "14:04:49 PDT"]
[Termination "slowdgehammer won by checkmate"]

1. Nf3 {[%clk 0:03:01.9]} 1... Nf6 {[%clk 0:03:00.5]} 2. c4 {[%clk 0:03:02.1]}
2... e6 {[%clk 0:03:01.8]} 3. b3 {[%clk 0:03:02.5]} 3... d5 {[%clk 0:03:03]} 4.
Bb2 {[%clk 0:03:02.7]} 4... Be7 {[%clk 0:03:04.7]} 5. g3 {[%clk 0:03:04.1]} 5...
O-O {[%clk 0:03:06.1]} 6. Bg2 {[%clk 0:03:05.5]} 6... c5 {[%clk 0:03:06.1]} 7.
O-O {[%clk 0:03:05.6]} 7... b6 {[%clk 0:03:07.5]} 8. e3 {[%clk 0:03:05.7]} 8...
Nbd7 {[%clk 0:03:00.5]} 9. Nc3 {[%clk 0:03:05.2]} 9... Ba6 {[%clk 0:03:01.3]}
10. Qe2 {[%clk 0:03:05]} 10... Qc7 {[%clk 0:02:59.1]} 11. Rac1 {[%clk
0:03:03.4]} 11... Rad8 {[%clk 0:02:58.1]} 12. d3 {[%clk 0:03:02.6]} 12... Nb8
{[%clk 0:02:52.4]} 13. Ne1 {[%clk 0:02:59.1]} 13... Nc6 {[%clk 0:02:53]} 14. g4
{[%clk 0:02:57]} 14... d4 {[%clk 0:02:53.6]} 15. Nb5 {[%clk 0:02:48.2]} 15...
Bxb5 {[%clk 0:02:19.9]} 16. cxb5 {[%clk 0:02:50.1]} 16... Ne5 {[%clk 0:02:21.5]}
17. g5 {[%clk 0:02:39.5]} 17... Nd5 {[%clk 0:02:05.1]} 18. exd4 {[%clk
0:02:30.6]} 18... Ng6 {[%clk 0:02:05.2]} 19. dxc5 {[%clk 0:02:24.1]} 19... Bxg5
{[%clk 0:01:57]} 20. Rc4 {[%clk 0:01:56.7]} 20... bxc5 {[%clk 0:01:50.4]} 21.
Nf3 {[%clk 0:01:53.4]} 21... Ndf4 {[%clk 0:01:39.4]} 22. Qe4 {[%clk 0:01:44.6]}
22... Bh6 {[%clk 0:01:15.4]} 23. d4 {[%clk 0:01:41.9]} 23... f5 {[%clk
0:01:14.6]} 24. Qc6 {[%clk 0:01:10.7]} 24... Qe7 {[%clk 0:00:59.9]} 25. dxc5
{[%clk 0:00:52.9]} 25... Nh4 {[%clk 0:00:51.7]} 26. Nxh4 {[%clk 0:00:39.8]}
26... Qxh4 {[%clk 0:00:53.6]} 27. Qf3 {[%clk 0:00:30]} 27... Rd3 {[%clk
0:00:48]} 28. Qxd3 {[%clk 0:00:19.8]} 28... Qg5 {[%clk 0:00:34.7]} 29. Rxf4
{[%clk 0:00:16.6]} 29... Qxf4 {[%clk 0:00:35.7]} 30. c6 {[%clk 0:00:09.6]} 30...
Bg5 {[%clk 0:00:32.4]} 31. Qe2 {[%clk 0:00:10.6]} 31... Re8 {[%clk 0:00:30.3]}
32. Rd1 {[%clk 0:00:09]} 32... Bd8 {[%clk 0:00:28.9]} 33. Qc4 {[%clk 0:00:09.8]}
33... Qh6 {[%clk 0:00:23.9]} 34. Bd4 {[%clk 0:00:09.5]} 34... Bc7 {[%clk
0:00:24.2]} 35. h3 {[%clk 0:00:08.8]} 35... Qf4 {[%clk 0:00:24.2]} 36. Be3
{[%clk 0:00:08.7]} 36... Qh2+ {[%clk 0:00:23.9]} 37. Kf1 {[%clk 0:00:10.2]}
37... f4 {[%clk 0:00:25.4]} 38. Bxa7 {[%clk 0:00:11.1]} 38... f3 {[%clk
0:00:22.6]} 39. Bxf3 {[%clk 0:00:12]} 39... Rf8 {[%clk 0:00:18.5]} 40. Qxe6+
{[%clk 0:00:11.4]} 40... Kh8 {[%clk 0:00:19.7]} 41. Qg4 {[%clk 0:00:11.9]} 41...
Qe5 {[%clk 0:00:10.1]} 42. Bd4 {[%clk 0:00:13]} 42... Qxb5+ {[%clk 0:00:11.2]}
43. Be2 {[%clk 0:00:11.9]} 43... Qxc6 {[%clk 0:00:09.5]} 44. Qxg7# {[%clk
0:00:11.9]} 1-0

[Event "*** Titled Tuesday Blitz"]
[Site "Chess.com"]
[Date "2019.08.06"]
[Round "5"]
[White "Hanging_pointer"]
[Black "Saitama_Hero"]
[Result "0-1"]
[WhiteElo "2458"]
[BlackElo "2329"]
[TimeControl "180+2"]
[EndTime "14:04:51 PDT"]
[Termination "Saitama_Hero won by resignation"]

1. e4 {[%clk 0:03:01.9]} 1... e6 {[%clk 0:02:59.9]} 2. d4 {[%clk 0:03:02.6]}
2... d5 {[%clk 0:03:01.5]} 3. Nd2 {[%clk 0:03:04.3]} 3... Nf6 {[%clk 0:03:01.4]}
4. e5 {[%clk 0:03:05.6]} 4... Nfd7 {[%clk 0:03:02.9]} 5. Bd3 {[%clk 0:03:07.5]}
5... c5 {[%clk 0:03:04.1]} 6. c3 {[%clk 0:03:09.4]} 6... Nc6 {[%clk 0:03:02.9]}
7. Ne2 {[%clk 0:03:10.8]} 7... cxd4 {[%clk 0:03:04.4]} 8. cxd4 {[%clk
0:03:12.7]} 8... f6 {[%clk 0:03:04.9]} 9. exf6 {[%clk 0:03:14.6]} 9... Nxf6
{[%clk 0:03:05.8]} 10. Nf3 {[%clk 0:03:16]} 10... Bd6 {[%clk 0:03:06.1]} 11. O-O
{[%clk 0:03:17]} 11... Qc7 {[%clk 0:03:07.3]} 12. Bg5 {[%clk 0:03:17.8]} 12...
O-O {[%clk 0:03:08.5]} 13. Bh4 {[%clk 0:03:19.2]} 13... Nh5 {[%clk 0:03:07.9]}
14. Qc2 {[%clk 0:03:20.7]} 14... h6 {[%clk 0:03:06.1]} 15. Bh7+ {[%clk
0:03:22.3]} 15... Kh8 {[%clk 0:03:06.9]} 16. Bg6 {[%clk 0:03:24.2]} 16... Rxf3
{[%clk 0:03:05.2]} 17. Bxh5 {[%clk 0:03:25.3]} 17... Rf5 {[%clk 0:02:56.7]} 18.
Bg6 {[%clk 0:03:26.1]} 18... Bxh2+ {[%clk 0:02:50.7]} 19. Kh1 {[%clk 0:03:27]}
19... Bd6 {[%clk 0:02:41.7]} 20. Bxf5 {[%clk 0:03:27.6]} 20... exf5 {[%clk
0:02:43.6]} 21. Rfe1 {[%clk 0:03:12.8]} 21... Qf7 {[%clk 0:02:28.8]} 22. Bg3
{[%clk 0:02:38.6]} 22... Bb4 {[%clk 0:01:10.7]} 23. Red1 {[%clk 0:02:13.4]}
23... g5 {[%clk 0:01:11.7]} 24. Be5+ {[%clk 0:01:26.3]} 24... Kg8 {[%clk
0:01:12.4]} 25. Kg1 {[%clk 0:01:09.3]} 25... f4 {[%clk 0:01:11.4]} 26. a3 {[%clk
0:01:01.6]} 26... Bf8 {[%clk 0:01:10.5]} 27. Qc3 {[%clk 0:00:48.6]} 27... Bg4
{[%clk 0:00:58.9]} 28. f3 {[%clk 0:00:49.2]} 28... Bf5 {[%clk 0:00:59]} 29. g3
{[%clk 0:00:43.3]} 29... Nxe5 {[%clk 0:00:45.5]} 30. dxe5 {[%clk 0:00:42.9]}
30... Rc8 {[%clk 0:00:46.8]} 31. Qb3 {[%clk 0:00:34.5]} 31... Rc2 {[%clk
0:00:24.1]} 32. Nd4 {[%clk 0:00:33]} 32... Bc5 {[%clk 0:00:22.5]} 33. g4 {[%clk
0:00:30.1]} 33... Bxg4 {[%clk 0:00:19.2]} 34. fxg4 {[%clk 0:00:27.1]} 34... f3
{[%clk 0:00:21.1]} 35. Qe3 {[%clk 0:00:18.6]} 35... Rg2+ {[%clk 0:00:11.8]} 36.
Kf1 {[%clk 0:00:11.4]} 36... Rxg4 {[%clk 0:00:13.7]} 37. e6 {[%clk 0:00:10.1]}
37... Qh5 {[%clk 0:00:13.2]} 38. Qxf3 {[%clk 0:00:06.6]} 38... Rf4 {[%clk
0:00:12.4]} 39. Qxf4 {[%clk 0:00:06.8]} 39... gxf4 {[%clk 0:00:14.3]} 40. Ke1
{[%clk 0:00:03.2]} 40... Bxd4 {[%clk 0:00:12.5]} 41. Rxd4 {[%clk 0:00:05.1]}
41... Qe5+ {[%clk 0:00:13.7]} 42. Kf2 {[%clk 0:00:05.9]} 42... Qxd4+ {[%clk
0:00:15.1]} 0-1

[Event "*** Titled Tuesday Blitz"]
[Site "Chess.com"]
[Date "2019.08.06"]
[Round "5"]
[White "LuisFSiles"]
[Black "Mbneu"]
[Result "1-0"]
[WhiteElo "2199"]
[BlackElo "2265"]
[TimeControl "180+2"]
[EndTime "14:04:51 PDT"]
[Termination "LuisFSiles won on time"]

1. e4 {[%clk 0:02:55.9]} 1... c5 {[%clk 0:03:00.2]} 2. Nf3 {[%clk 0:02:56]} 2...
Nf6 {[%clk 0:03:00.7]} 3. e5 {[%clk 0:02:55.4]} 3... Nd5 {[%clk 0:03:01.3]} 4.
c3 {[%clk 0:02:56.6]} 4... Nc6 {[%clk 0:02:57.3]} 5. d4 {[%clk 0:02:56.6]} 5...
cxd4 {[%clk 0:02:58.3]} 6. cxd4 {[%clk 0:02:58.5]} 6... d6 {[%clk 0:02:58.9]} 7.
Bc4 {[%clk 0:02:57.9]} 7... e6 {[%clk 0:02:59]} 8. O-O {[%clk 0:02:53.8]} 8...
Be7 {[%clk 0:02:59]} 9. Qe2 {[%clk 0:02:54.7]} 9... O-O {[%clk 0:02:58.5]} 10.
Qe4 {[%clk 0:02:54]} 10... dxe5 {[%clk 0:01:59.4]} 11. dxe5 {[%clk 0:02:53.5]}
11... g6 {[%clk 0:01:59.9]} 12. Bh6 {[%clk 0:02:43.5]} 12... Re8 {[%clk
0:02:00.1]} 13. h4 {[%clk 0:02:40.1]} 13... a6 {[%clk 0:01:47.2]} 14. Nbd2
{[%clk 0:02:23.8]} 14... b5 {[%clk 0:01:47.5]} 15. Bb3 {[%clk 0:02:20.5]} 15...
Bb7 {[%clk 0:01:46.4]} 16. Qg4 {[%clk 0:02:18.2]} 16... Na5 {[%clk 0:01:32.6]}
17. Rad1 {[%clk 0:01:47.3]} 17... Nxb3 {[%clk 0:01:31.9]} 18. axb3 {[%clk
0:01:49.2]} 18... Qc7 {[%clk 0:01:17.4]} 19. Ne4 {[%clk 0:01:48.3]} 19... Qc2
{[%clk 0:01:16.1]} 20. Nd4 {[%clk 0:01:39.9]} 20... Qxb2 {[%clk 0:01:13.3]} 21.
Rd2 {[%clk 0:01:37.3]} 21... Qa3 {[%clk 0:01:05.4]} 22. Nxe6 {[%clk 0:01:22]}
22... Bc8 {[%clk 0:00:52.1]} 23. Rxd5 {[%clk 0:00:49.3]} 23... Bxe6 {[%clk
0:00:51.7]} 24. Qd1 {[%clk 0:00:47.5]} 24... Red8 {[%clk 0:00:38.5]} 25. Rxd8+
{[%clk 0:00:38]} 25... Rxd8 {[%clk 0:00:40.4]} 26. Qf3 {[%clk 0:00:37.6]} 26...
Qxb3 {[%clk 0:00:34.3]} 27. Nf6+ {[%clk 0:00:37.3]} 27... Kh8 {[%clk 0:00:35.1]}
28. Qb7 {[%clk 0:00:37.1]} 28... Qb4 {[%clk 0:00:21.1]} 29. h5 {[%clk
0:00:23.2]} 29... Bf8 {[%clk 0:00:18.9]} 30. Bxf8 {[%clk 0:00:22.7]} 30... Qxf8
{[%clk 0:00:19.7]} 31. Qc7 {[%clk 0:00:21.5]} 31... Rc8 {[%clk 0:00:20]} 32. Qb7
{[%clk 0:00:21.6]} 32... Qc5 {[%clk 0:00:18.8]} 33. h6 {[%clk 0:00:20.9]} 33...
Qxe5 {[%clk 0:00:18.6]} 34. Qe7 {[%clk 0:00:18.1]} 34... Qc5 {[%clk 0:00:19.3]}
35. Qb7 {[%clk 0:00:14.7]} 35... Qc6 {[%clk 0:00:20]} 36. Qe7 {[%clk 0:00:13.9]}
36... Qc7 {[%clk 0:00:20.9]} 37. Nd7 {[%clk 0:00:14.7]} 37... Qc3 {[%clk
0:00:12.3]} 38. Nc5 {[%clk 0:00:08.2]} 38... Qe5 {[%clk 0:00:08.7]} 39. Nxe6
{[%clk 0:00:08.1]} 39... fxe6 {[%clk 0:00:08.2]} 40. f4 {[%clk 0:00:06.7]} 40...
Qd4+ {[%clk 0:00:08.3]} 41. Kh2 {[%clk 0:00:07.5]} 1-0